[Event "34rd NATO Championship 2024"]
[Site "Rhodes"]
[Date "2024.10.22"]
[Round "2.24"]
[White "Tucker, David S"]
[Black "Hof - Van Run, Rieke"]
[Result "1/2-1/2"]
[ECO "B74"]
[WhiteElo "1921"]
[BlackElo "2038"]
[Annotator "RC"]
[PlyCount "66"]
[EventDate "2024.09.18"]
[EventType "swiss"]
[EventCountry "GRE"]
[SourceTitle "playchess.com"]
[Source "ChessBase"]
[SourceQuality "1"]
[TimeControl "5400+30"]

1. e4 {[%emt 0:00:06]} c5 {[%emt 0:00:48]} 2. Nf3 {[%emt 0:00:17]} Nc6 {[%emt 0:00:06]} 3. d4 {[%emt 0:01:10]} cxd4 {[%emt 0:00:15]} 4. Nxd4 {[%emt 0:00:25]} d6 {[%emt 0:00:17]} 5. Nc3 {[%emt 0:00:52]} g6 {[%emt 0:00:15]} 6. Be2 {[%emt 0:05:09]} Bg7 {[%emt 0:00:34]} 7. Be3 {[%emt 0:00:59]} Nf6 {[%emt 0:00:20]} 8. O-O {[%emt 0:01:07]} O-O {[%emt 0:00:45]} 9. Nb3 {[%emt 0:04:26]} a6 {[%emt 0:01:35]} 10. f4 {[%emt 0:03:24]} Ne8 {[%emt 0:07:58]} 11. Qd2 {[%emt 0:07:30]} b5 {[%emt 0:08:01]} 12. a3 {[%emt 0:03:20]} Bb7 {[%emt 0:01:52]} 13. Bf3 {[%emt 0:00:53]} Na5 {[%emt 0:03:06]} 14. Nxa5 {[%emt 0:02:02]} Qxa5 {[%emt 0:00:19]} 15. Bd4 {[%emt 0:13:46]} Rc8 {[%emt 0:07:18]} 16. Bxg7 {[%emt 0:03:43]} Nxg7 {[%emt 0:00:45]} 17. Rf2 {[%emt 0:06:16]} Qb6 {[%emt 0:03:14]} 18. Rc1 {[%emt 0:02:55]} Rc5 {[%emt 0:05:51]} 19. Qe3 {[%emt 0:04:06]} Qc7 {[%emt 0:02:37]} 20. Rd2 {[%emt 0:06:06]} Rc8 {[%emt 0:05:07]} 21. Nd5 {[%emt 0:01:00]} Bxd5 {[%emt 0:01:12]} 22. exd5 {[%emt 0:00:10]} Nf5 {[%emt 0:00:21]} 23. Qf2 {[%emt 0:00:47]} Rc4 {[%emt 0:00:45]} 24. g3 {[%emt 0:00:27]} Qc5 {[%emt 0:00:53]} 25. Bg4 {[%emt 0:02:53]} Kg7 {[%emt 0:03:43]} 26. Bxf5 {[%emt 0:00:44]} gxf5 {[%emt 0:03:17]} 27. c3 {[%emt 0:01:35]} a5 {[%emt 0:05:04]} 28. Re1 {[%emt 0:04:30]} Kf6 {[%emt 0:04:53]} 29. Qe3 {[%emt 0:03:20]} Re4 {[%emt 0:09:24]} 30. Qxc5 {[%emt 0:00:13]} Rxe1+ {[%emt 0:00:25]} 31. Kf2 {[%emt 0:00:14]} Rxc5 {[%emt 0:01:08]} 32. Kxe1 {[%emt 0:00:11]} a4 {[%emt 0:00:32]} 33. Ke2 {[%emt 0:01:03]} h5 {[%emt 0:00:29]} 1/2-1/2

[Event "34rd NATO Championship 2024"]
[Site "Rhodes"]
[Date "2024.10.22"]
[Round "2.25"]
[White "Nielsen, Jan Mose"]
[Black "Kapsomenakis, Petros"]
[Result "1/2-1/2"]
[ECO "D15"]
[WhiteElo "2036"]
[BlackElo "1914"]
[Annotator "RC"]
[PlyCount "151"]
[EventDate "2024.09.18"]
[EventType "swiss"]
[EventCountry "GRE"]
[SourceTitle "playchess.com"]
[Source "ChessBase"]
[SourceQuality "1"]
[TimeControl "5400+30"]

1. d4 {[%emt 0:00:02]} d5 {[%emt 0:00:01]} 2. Nf3 {[%emt 0:00:08]} Nf6 {[%emt 0:00:10]} 3. Bg5 {[%emt 0:00:04]} Bf5 {[%emt 0:00:23]} 4. e3 {[%emt 0:01:52]} Nbd7 {[%emt 0:02:05]} 5. c4 {[%emt 0:01:07]} c6 {[%emt 0:00:30]} 6. Nc3 {[%emt 0:02:25]} e6 {[%emt 0:01:27]} 7. Bd3 {[%emt 0:07:28]} Bg4 {[%emt 0:04:41]} 8. O-O {[%emt 0:06:09]} Be7 {[%emt 0:00:40]} 9. a3 {[%emt 0:05:04]} c5 {[%emt 0:12:58]} 10. dxc5 {[%emt 0:08:58]} Nxc5 {[%emt 0:12:07]} 11. cxd5 {[%emt 0:08:08]} Nxd3 {[%emt 0:03:11]} 12. Bxf6 {[%emt 0:03:17]} Bxf6 {[%emt 0:00:37]} 13. Qa4+ {[%emt 0:00:10]} Qd7 {[%emt 0:04:16]} 14. Qxg4 {[%emt 0:00:12]} Nc5 {[%emt 0:10:20]} 15. Rad1 {[%emt 0:15:56]} Bxc3 {[%emt 0:06:21]} 16. bxc3 {[%emt 0:00:16]} O-O {[%emt 0:00:24]} 17. dxe6 {[%emt 0:02:22]} Qxe6 {[%emt 0:00:17]} 18. Qb4 {[%emt 0:04:54]} b6 {[%emt 0:01:32]} 19. Rd4 {[%emt 0:03:45]} Rac8 {[%emt 0:01:55]} 20. Rfd1 {[%emt 0:01:01]} h6 {[%emt 0:00:54]} 21. h3 {[%emt 0:01:29]} Rfe8 {[%emt 0:01:48]} 22. a4 {[%emt 0:03:04]} Nb7 {[%emt 0:05:09]} 23. Rd7 {[%emt 0:02:49]} Red8 {[%emt 0:02:28]} 24. Rxd8+ {[%emt 0:00:12]} Rxd8 {[%emt 0:01:14]} 25. Nd4 {[%emt 0:00:08]} Qc8 {[%emt 0:03:50]} 26. Rb1 {[%emt 0:03:50]} Na5 {[%emt 0:00:36]} 27. Nb3 {[%emt 0:03:27]} Rd5 {[%emt 0:02:31]} 28. Nxa5 {[%emt 0:01:26]} Rxa5 {[%emt 0:00:17]} 29. Rd1 {[%emt 0:00:09]} Rc5 {[%emt 0:02:24]} 30. Rd3 {[%emt 0:01:09]} Qc6 {[%emt 0:03:15]} 31. Qf4 {[%emt 0:02:46]} Qc8 {[%emt 0:07:00]} 32. Qb4 {[%emt 0:03:34]} Qc6 {[%emt 0:00:40]} 33. Qb3 {[%emt 0:04:12]} Qc7 {[%emt 0:02:19]} 34. g3 {[%emt 0:00:41]} g6 {[%emt 0:01:07]} 35. Kh2 {[%emt 0:00:38]} Kg7 {[%emt 0:00:46]} 36. Qb4 {[%emt 0:01:07]} Rc4 {[%emt 0:00:49]} 37. Qb5 {[%emt 0:01:18]} Rc6 {[%emt 0:02:50]} 38. Qd5 {[%emt 0:00:24]} Kh7 {[%emt 0:03:13]} 39. Qf3 {[%emt 0:02:02]} Kg7 {[%emt 0:00:23]} 40. Qg4 {[%emt 0:00:39]} Rc4 {[%emt 0:01:28]} 41. Rd4 {[%emt 0:00:22]} Rxc3 {[%emt 0:00:53]} 42. Rd7 {[%emt 0:00:10]} Qc5 {[%emt 0:00:01]} 43. Rxa7 {[%emt 0:00:33]} Rc2 {[%emt 0:00:13]} 44. Qf3 {[%emt 0:00:14]} Qc4 {[%emt 0:00:34]} 45. Rd7 {[%emt 0:00:21]} Qa2 {[%emt 0:00:33]} 46. Kg2 {[%emt 0:00:11]} Rc5 {[%emt 0:00:52]} 47. Rd4 {[%emt 0:00:21]} Rf5 {[%emt 0:00:49]} 48. Rf4 {[%emt 0:00:05]} Ra5 {[%emt 0:00:49]} 49. Qc6 {[%emt 0:00:11]} Qb2 {[%emt 0:00:36]} 50. Qd7 {[%emt 0:00:23]} Qb3 {[%emt 0:00:27]} 51. Qd4+ {[%emt 0:00:14]} Kg8 {[%emt 0:00:21]} 52. Qd7 {[%emt 0:01:11]} Qd5+ {[%emt 0:00:22]} 53. Qxd5 {[%emt 0:00:12]} Rxd5 {[%emt 0:00:01]} 54. Rb4 {[%emt 0:00:18]} Ra5 {[%emt 0:00:18]} 55. Kf3 {[%emt 0:00:10]} Kf8 {[%emt 0:00:19]} 56. Ke2 {[%emt 0:00:44]} Ke7 {[%emt 0:00:01]} 57. Kd3 {[%emt 0:00:18]} Kd7 {[%emt 0:00:01]} 58. Kc3 {[%emt 0:00:25]} Kc7 {[%emt 0:00:22]} 59. Rf4 {[%emt 0:00:47]} f5 {[%emt 0:00:33]} 60. Kb4 {[%emt 0:00:49]} Rd5 {[%emt 0:01:18]} 61. Rd4 {[%emt 0:00:21]} Re5 {[%emt 0:01:03]} 62. Rh4 {[%emt 0:01:42]} h5 {[%emt 0:00:20]} 63. Rc4+ {[%emt 0:00:09]} Kb7 {[%emt 0:00:22]} 64. h4 {[%emt 0:00:06]} Rd5 {[%emt 0:01:09]} 65. Rd4 {[%emt 0:00:05]} Rc5 {[%emt 0:00:16]} 66. Rc4 {[%emt 0:02:36]} Rd5 {[%emt 0:00:02]} 67. Kc3 {[%emt 0:00:17]} Rd1 {[%emt 0:00:23]} 68. Rd4 {[%emt 0:00:49]} Rf1 {[%emt 0:00:10]} 69. Rf4 {[%emt 0:00:06]} Kc6 {[%emt 0:00:39]} 70. Kd2 {[%emt 0:00:25]} Kd5 {[%emt 0:00:30]} 71. Ke2 {[%emt 0:00:23]} Ra1 {[%emt 0:00:05]} 72. Rb4 {[%emt 0:00:23]} Kc5 {[%emt 0:00:26]} 73. Rb5+ {[%emt 0:00:41]} Kc6 {[%emt 0:00:04]} 74. Rb4 {[%emt 0:00:04]} Kc5 {[%emt 0:00:21]} 75. Rd4 {[%emt 0:00:05]} Rb1 {[%emt 0:00:23]} 76. Kd3 {[%emt 0:01:48]} 1/2-1/2

[Event "34rd NATO Championship 2024"]
[Site "Rhodes"]
[Date "2024.10.22"]
[Round "2.27"]
[White "Allmann, Lauri"]
[Black "Sauer, Marko"]
[Result "1/2-1/2"]
[ECO "A41"]
[WhiteElo "1852"]
[BlackElo "2086"]
[Annotator "RC"]
[PlyCount "39"]
[EventDate "2024.09.18"]
[EventType "swiss"]
[EventCountry "GRE"]
[SourceTitle "playchess.com"]
[Source "ChessBase"]
[SourceQuality "1"]
[TimeControl "5400+30"]

1. c4 {[%emt 0:00:06]} e5 {[%emt 0:00:16]} 2. Nc3 {[%emt 0:00:06]} Nc6 {[%emt 0:00:19]} 3. Nf3 {[%emt 0:00:28]} d6 {[%emt 0:01:05]} 4. d4 {[%emt 0:01:38]} exd4 {[%emt 0:03:37]} 5. Nxd4 {[%emt 0:02:26]} Bd7 {[%emt 0:02:48]} 6. g3 {[%emt 0:03:03]} Be7 {[%emt 0:08:12]} 7. Nd5 {[%emt 0:05:10]} Nf6 {[%emt 0:08:18]} 8. Bg2 {[%emt 0:06:26]} Nxd5 {[%emt 0:09:18]} 9. Nxc6 {[%emt 0:02:43]} bxc6 {[%emt 0:01:17]} 10. cxd5 {[%emt 0:00:45]} cxd5 {[%emt 0:01:46]} 11. Qxd5 {[%emt 0:07:01]} Rb8 {[%emt 0:07:27]} 12. Qa5 {[%emt 0:07:59]} Bf6 {[%emt 0:11:26]} 13. Rb1 {[%emt 0:03:54]} O-O {[%emt 0:02:04]} 14. O-O {[%emt 0:02:18]} Re8 {[%emt 0:05:10]} 15. Re1 {[%emt 0:07:07]} Rb5 {[%emt 0:04:31]} 16. Qd2 {[%emt 0:02:59]} Qb8 {[%emt 0:04:00]} 17. b3 {[%emt 0:02:37]} Qb6 {[%emt 0:06:01]} 18. Bb2 {[%emt 0:01:59]} Bxb2 {[%emt 0:02:17]} 19. Rxb2 {[%emt 0:00:29]} Bc6 {[%emt 0:00:38]} 20. Rc1 {[%emt 0:00:53]} 1/2-1/2

[Event "34rd NATO Championship 2024"]
[Site "Rhodes"]
[Date "2024.10.22"]
[Round "2.28"]
[White "Ross, David C"]
[Black "Fichtner, Ewald"]
[Result "0-1"]
[ECO "B11"]
[WhiteElo "1788"]
[BlackElo "2063"]
[Annotator "RC"]
[PlyCount "68"]
[EventDate "2024.09.18"]
[EventType "swiss"]
[EventCountry "GRE"]
[SourceTitle "playchess.com"]
[Source "ChessBase"]
[SourceQuality "1"]
[TimeControl "5400+30"]

1. e4 {[%emt 0:00:10]} c6 {[%emt 0:00:05]} 2. Nc3 {[%emt 0:00:32]} d5 {[%emt 0:00:08]} 3. Nf3 {[%emt 0:00:12]} dxe4 {[%emt 0:01:26]} 4. Nxe4 {[%emt 0:00:51]} Nf6 {[%emt 0:00:07]} 5. Qe2 {[%emt 0:01:17]} Nxe4 {[%emt 0:01:04]} 6. Qxe4 {[%emt 0:00:13]} Qd5 {[%emt 0:00:29]} 7. Qxd5 {[%emt 0:05:28]} cxd5 {[%emt 0:00:50]} 8. d4 {[%emt 0:00:45]} Nc6 {[%emt 0:00:55]} 9. Bb5 {[%emt 0:02:19]} Bf5 {[%emt 0:00:48]} 10. c3 {[%emt 0:01:08]} a6 {[%emt 0:01:06]} 11. Ba4 {[%emt 0:02:07]} b5 {[%emt 0:00:29]} 12. Bb3 {[%emt 0:00:43]} e6 {[%emt 0:00:17]} 13. Bf4 {[%emt 0:04:28]} h6 {[%emt 0:05:01]} 14. h4 {[%emt 0:02:53]} Be7 {[%emt 0:00:45]} 15. a3 {[%emt 0:08:27]} O-O {[%emt 0:01:07]} 16. O-O {[%emt 0:08:47]} Na5 {[%emt 0:02:09]} 17. Ba2 {[%emt 0:08:59]} Nc4 {[%emt 0:01:17]} 18. Bxc4 {[%emt 0:01:02]} bxc4 {[%emt 0:00:16]} 19. Rad1 {[%emt 0:02:34]} Ra7 {[%emt 0:02:01]} 20. Ne5 {[%emt 0:04:51]} Bxh4 {[%emt 0:09:15]} 21. Bc1 {[%emt 0:04:04]} Rb7 {[%emt 0:01:57]} 22. g4 {[%emt 0:08:05]} Be4 {[%emt 0:01:37]} 23. f3 {[%emt 0:02:21]} Bh7 {[%emt 0:00:17]} 24. Rd2 {[%emt 0:02:43]} f6 {[%emt 0:01:28]} 25. Nc6 {[%emt 0:01:18]} Rb6 {[%emt 0:02:25]} 26. Nb4 {[%emt 0:03:36]} a5 {[%emt 0:00:11]} 27. Nc2 {[%emt 0:00:20]} Bd3 {[%emt 0:00:16]} 28. Rfd1 {[%emt 0:04:07]} Bg5 {[%emt 0:00:21]} 29. Ne1 {[%emt 0:04:50]} Bxd2 {[%emt 0:01:19]} 30. Rxd2 {[%emt 0:00:13]} Bg6 {[%emt 0:00:55]} 31. Ng2 {[%emt 0:00:50]} f5 {[%emt 0:06:46]} 32. Nf4 {[%emt 0:02:14]} Bh7 {[%emt 0:00:08]} 33. Re2 {[%emt 0:00:52]} fxg4 {[%emt 0:00:46]} 34. fxg4 {[%emt 0:00:56]} Be4 {[%emt 0:59:29]} 0-1

[Event "34rd NATO Championship 2024"]
[Site "Rhodes"]
[Date "2024.10.22"]
[Round "2.29"]
[White "Schott, Guido"]
[Black "Steen, Kris"]
[Result "1-0"]
[ECO "B30"]
[WhiteElo "2059"]
[BlackElo "1876"]
[Annotator "RC"]
[PlyCount "45"]
[EventDate "2024.09.18"]
[EventType "swiss"]
[EventCountry "GRE"]
[SourceTitle "playchess.com"]
[Source "ChessBase"]
[SourceQuality "1"]
[TimeControl "5400+30"]

1. e4 {[%emt 0:00:09]} e6 {[%emt 0:00:09]} 2. d3 {[%emt 0:00:14]} Be7 {[%emt 0:00:47]} 3. g3 {[%emt 0:00:33]} c5 {[%emt 1:31:04]} 4. Bg2 {[%emt 0:00:15]} Nc6 {[%emt 0:00:00]} 5. Nf3 {[%emt 0:01:49]} d6 {[%emt 0:00:00]} 6. c3 {[%emt 0:02:07]} Nf6 {[%emt 0:00:00]} 7. Nbd2 {[%emt 0:01:26]} O-O {[%emt 0:00:00]} 8. O-O {[%emt 0:00:19]} d5 {[%emt 0:00:00]} 9. e5 {[%emt 0:00:30]} Nd7 {[%emt 0:00:00]} 10. Re1 {[%emt 0:00:30]} f6 {[%emt 0:00:00]} 11. exf6 {[%emt 0:06:01]} Bxf6 {[%emt 0:00:00]} 12. Nf1 {[%emt 0:02:40]} e5 {[%emt 0:00:00]} 13. h4 {[%emt 0:01:25]} Nb6 {[%emt 0:00:00]} 14. a4 {[%emt 0:02:16]} a5 {[%emt 0:00:00]} 15. Qb3 {[%emt 0:02:53]} c4 {[%emt 0:00:00]} 16. dxc4 {[%emt 0:09:17]} Nxc4 {[%emt 0:00:00]} 17. Ne3 {[%emt 0:05:16]} Qb6 {[%emt 0:00:00]} 18. Qc2 {[%emt 0:04:59]} Nxe3 {[%emt 0:00:00]} 19. Bxe3 {[%emt 0:00:26]} Qc7 {[%emt 0:00:00]} 20. Ng5 {[%emt 0:00:30]} e4 {[%emt 0:00:00]} 21. Qb3 {[%emt 0:00:30]} h6 {[%emt 0:00:00]} 22. Qxd5+ {[%emt 0:00:30]} Kh8 {[%emt 0:00:00]} 23. Qxe4 {[%emt 0:00:30]} 1-0

[Event "34rd NATO Championship 2024"]
[Site "Rhodes"]
[Date "2024.10.22"]
[Round "2.30"]
[White "Mihailov, Iulian"]
[Black "Filipow, Mateusz"]
[Result "1-0"]
[ECO "C45"]
[WhiteElo "2048"]
[BlackElo "1843"]
[Annotator "RC"]
[PlyCount "131"]
[EventDate "2024.09.18"]
[EventType "swiss"]
[EventCountry "GRE"]
[SourceTitle "playchess.com"]
[Source "ChessBase"]
[SourceQuality "1"]
[TimeControl "5400+30"]

1. e4 {[%emt 0:01:16]} e5 {[%emt 0:00:05]} 2. Nf3 {[%emt 0:00:13]} Nc6 {[%emt 0:00:06]} 3. d4 {[%emt 0:00:06]} exd4 {[%emt 0:00:23]} 4. Nxd4 {[%emt 0:00:02]} Nf6 {[%emt 0:03:05]} 5. Nxc6 {[%emt 0:00:11]} dxc6 {[%emt 0:01:21]} 6. Qxd8+ {[%emt 0:00:05]} Kxd8 {[%emt 0:00:07]} 7. Nc3 {[%emt 0:17:40]} Be6 {[%emt 0:12:06]} 8. Bg5 {[%emt 0:08:12]} h6 {[%emt 0:08:31]} 9. O-O-O+ {[%emt 0:02:12]} Kc8 {[%emt 0:00:40]} 10. Bh4 {[%emt 0:26:04]} g5 {[%emt 0:01:20]} 11. Bg3 {[%emt 0:00:10]} Nh5 {[%emt 0:12:27]} 12. Be5 {[%emt 0:00:42]} f6 {[%emt 0:02:00]} 13. Bd4 {[%emt 0:01:56]} Be7 {[%emt 0:00:56]} 14. h4 {[%emt 0:02:46]} g4 {[%emt 0:08:15]} 15. g3 {[%emt 0:04:24]} b5 {[%emt 0:09:47]} 16. Bg2 {[%emt 0:02:26]} Kb7 {[%emt 0:11:43]} 17. Rhe1 {[%emt 0:07:10]} a6 {[%emt 0:03:49]} 18. Nd5 {[%emt 0:05:02]} Bd8 {[%emt 0:04:43]} 19. Nb4 {[%emt 0:01:45]} a5 {[%emt 0:01:13]} 20. Nd3 {[%emt 0:08:04]} Be7 {[%emt 0:03:11]} 21. Bc5 {[%emt 0:02:43]} Bd6 {[%emt 0:00:48]} 22. Bd4 {[%emt 0:03:15]} Be7 {[%emt 0:02:22]} 23. Nc5+ {[%emt 0:01:21]} Bxc5 {[%emt 0:00:11]} 24. Bxc5 {[%emt 0:00:01]} Rad8 {[%emt 0:01:02]} 25. a3 {[%emt 0:01:10]} Rxd1+ {[%emt 0:01:23]} 26. Rxd1 {[%emt 0:00:48]} Ng7 {[%emt 0:02:08]} 27. Be7 {[%emt 0:01:05]} Nh5 {[%emt 0:02:41]} 28. Rd8 {[%emt 0:01:34]} Rxd8 {[%emt 0:00:15]} 29. Bxd8 {[%emt 0:02:37]} Kc8 {[%emt 0:00:14]} 30. Be7 {[%emt 0:00:00]} Kd7 {[%emt 0:00:10]} 31. Bf8 {[%emt 0:00:00]} a4 {[%emt 0:02:24]} 32. Kd2 {[%emt 0:00:00]} f5 {[%emt 0:00:51]} 33. Bxh6 {[%emt 0:00:00]} Nf6 {[%emt 0:01:39]} 34. exf5 {[%emt 0:01:51]} Bxf5 {[%emt 0:00:10]} 35. Bf4 {[%emt 0:00:38]} Nd5 {[%emt 0:00:17]} 36. Be5 {[%emt 0:00:12]} Bg6 {[%emt 0:00:57]} 37. Bf1 {[%emt 0:00:04]} Ke6 {[%emt 0:00:30]} 38. Bd4 {[%emt 0:00:03]} Ne7 {[%emt 0:00:44]} 39. Bd3 {[%emt 0:00:18]} Be8 {[%emt 0:01:21]} 40. Bc5 {[%emt 0:00:50]} Nf5 {[%emt 0:00:18]} 41. Be2 {[%emt 0:01:08]} Bh5 {[%emt 0:01:12]} 42. c4 {[%emt 0:00:14]} bxc4 {[%emt 0:00:43]} 43. Bxc4+ {[%emt 0:00:02]} Ke5 {[%emt 0:00:36]} 44. b3 {[%emt 0:01:36]} axb3 {[%emt 0:00:42]} 45. Bxb3 {[%emt 0:00:02]} Nd6 {[%emt 0:01:41]} 46. Ke2 {[%emt 0:00:50]} Ne4 {[%emt 0:00:16]} 47. Be3 {[%emt 0:00:08]} c5 {[%emt 0:00:32]} 48. Kd3 {[%emt 0:00:31]} Bg6 {[%emt 0:01:19]} 49. Bf4+ {[%emt 0:00:36]} Kf6 {[%emt 0:00:07]} 50. Ke3 {[%emt 0:00:12]} Nc3 {[%emt 0:01:15]} 51. Bxc7 {[%emt 0:00:34]} Nb5 {[%emt 0:00:32]} 52. Bd8+ {[%emt 0:00:07]} Ke5 {[%emt 0:00:18]} 53. a4 {[%emt 0:00:29]} Nd4 {[%emt 0:00:35]} 54. Bd1 {[%emt 0:01:03]} Nf5+ {[%emt 0:00:31]} 55. Kd2 {[%emt 0:00:16]} Be8 {[%emt 0:00:51]} 56. a5 {[%emt 0:00:23]} Nd4 {[%emt 0:00:30]} 57. a6 {[%emt 0:00:35]} Bc6 {[%emt 0:00:27]} 58. Bxg4 {[%emt 0:00:23]} Nb3+ {[%emt 0:00:37]} 59. Kc3 {[%emt 0:00:06]} Nd4 {[%emt 0:00:06]} 60. h5 {[%emt 0:00:19]} Be4 {[%emt 0:00:24]} 61. h6 {[%emt 0:00:53]} Nc6 {[%emt 0:00:41]} 62. Bb6 {[%emt 0:00:50]} Nb4 {[%emt 0:00:37]} 63. Bxc5 {[%emt 0:00:50]} Nxa6 {[%emt 0:00:12]} 64. Bd4+ {[%emt 0:00:16]} Kd6 {[%emt 0:00:13]} 65. Be2 {[%emt 0:00:31]} Nc7 {[%emt 0:00:25]} 66. Bd3 {[%emt 0:00:51]} 1-0

[Event "34rd NATO Championship 2024"]
[Site "Rhodes"]
[Date "2024.10.22"]
[Round "2.31"]
[White "Jeselson, Andrew"]
[Black "Aagaard, Gert"]
[Result "1-0"]
[ECO "B12"]
[WhiteElo "1858"]
[BlackElo "2029"]
[Annotator "RC"]
[PlyCount "65"]
[EventDate "2024.09.18"]
[EventType "swiss"]
[EventCountry "GRE"]
[SourceTitle "playchess.com"]
[Source "ChessBase"]
[SourceQuality "1"]
[TimeControl "5400+30"]

1. e4 {[%emt 0:00:08]} c6 {[%emt 0:00:25]} 2. d4 {[%emt 0:00:21]} d5 {[%emt 0:00:04]} 3. e5 {[%emt 0:00:05]} Bf5 {[%emt 0:00:05]} 4. h4 {[%emt 0:00:15]} Qb6 {[%emt 0:01:48]} 5. a4 {[%emt 0:01:43]} a5 {[%emt 0:00:42]} 6. Ne2 {[%emt 0:01:47]} Na6 {[%emt 0:00:21]} 7. Nf4 {[%emt 0:10:21]} Bd7 {[%emt 0:07:03]} 8. c3 {[%emt 0:10:35]} e6 {[%emt 0:00:13]} 9. Na3 {[%emt 0:01:40]} c5 {[%emt 0:08:36]} 10. Nb5 {[%emt 0:03:56]} cxd4 {[%emt 0:02:01]} 11. cxd4 {[%emt 0:09:59]} Bb4+ {[%emt 0:09:08]} 12. Bd2 {[%emt 0:00:07]} Bxb5 {[%emt 0:01:41]} 13. Bxb5+ {[%emt 0:00:08]} Kf8 {[%emt 0:00:06]} 14. Bc3 {[%emt 0:07:43]} Ne7 {[%emt 0:00:21]} 15. Kf1 {[%emt 0:06:09]} Ng6 {[%emt 0:05:49]} 16. Nd3 {[%emt 0:07:05]} Bxc3 {[%emt 0:04:21]} 17. bxc3 {[%emt 0:00:04]} Rc8 {[%emt 0:01:03]} 18. Qb3 {[%emt 0:00:43]} Ne7 {[%emt 0:03:04]} 19. Qa3 {[%emt 0:00:32]} f6 {[%emt 0:00:50]} 20. Rh3 {[%emt 0:01:09]} Kf7 {[%emt 0:08:22]} 21. exf6 {[%emt 0:10:31]} gxf6 {[%emt 0:00:18]} 22. Nf4 {[%emt 0:00:17]} Ng6 {[%emt 0:02:08]} 23. Nh5 {[%emt 0:02:18]} Qc7 {[%emt 0:02:35]} 24. Qc1 {[%emt 0:00:16]} Qd6 {[%emt 0:02:32]} 25. Rf3 {[%emt 0:06:13]} f5 {[%emt 0:00:34]} 26. Qg5 {[%emt 0:00:11]} Qd8 {[%emt 0:04:55]} 27. Rxf5+ {[%emt 0:00:54]} exf5 {[%emt 0:00:06]} 28. Qxf5+ {[%emt 0:00:05]} Kg8 {[%emt 0:02:21]} 29. Bd7 {[%emt 0:04:13]} Rc6 {[%emt 0:00:15]} 30. Qxd5+ {[%emt 0:01:48]} Kf8 {[%emt 0:00:09]} 31. Bxc6 {[%emt 0:00:14]} Qxh4 {[%emt 0:03:09]} 32. Qf5+ {[%emt 0:00:44]} Ke7 {[%emt 0:00:33]} 33. Re1+ {[%emt 0:00:31]} 1-0

[Event "34rd NATO Championship 2024"]
[Site "Rhodes"]
[Date "2024.10.22"]
[Round "2.32"]
[White "Nilsson, Erik"]
[Black "Van den Heuvel, Tonnie"]
[Result "1-0"]
[ECO "D36"]
[WhiteElo "2028"]
[BlackElo "1839"]
[Annotator "RC"]
[PlyCount "49"]
[EventDate "2024.09.18"]
[EventType "swiss"]
[EventCountry "GRE"]
[SourceTitle "playchess.com"]
[Source "ChessBase"]
[SourceQuality "1"]
[TimeControl "5400+30"]

1. d4 {[%emt 0:00:03]} d5 {[%emt 0:02:43]} 2. c4 {[%emt 0:00:10]} e6 {[%emt 0:00:19]} 3. Nc3 {[%emt 0:00:08]} Nf6 {[%emt 0:00:38]} 4. cxd5 {[%emt 0:00:10]} exd5 {[%emt 0:00:13]} 5. Bg5 {[%emt 0:00:10]} Be7 {[%emt 0:00:24]} 6. e3 {[%emt 0:00:36]} c6 {[%emt 0:00:17]} 7. Qc2 {[%emt 0:00:13]} O-O {[%emt 0:00:30]} 8. Bd3 {[%emt 0:00:10]} Nbd7 {[%emt 0:00:06]} 9. Nge2 {[%emt 0:00:37]} Re8 {[%emt 0:00:26]} 10. O-O {[%emt 0:00:21]} Nf8 {[%emt 0:01:13]} 11. f3 {[%emt 0:01:03]} Nh5 {[%emt 0:01:59]} 12. Bxe7 {[%emt 0:00:51]} Qxe7 {[%emt 0:00:06]} 13. e4 {[%emt 1:32:28]} dxe4 {[%emt 0:01:05]} 14. fxe4 {[%emt 0:00:00]} Qg5 {[%emt 0:01:29]} 15. Rf2 {[%emt 0:00:00]} Bg4 {[%emt 0:03:40]} 16. Raf1 {[%emt 0:00:00]} Re7 {[%emt 0:09:21]} 17. Bc4 {[%emt 0:00:00]} Ne6 {[%emt 0:05:33]} 18. d5 {[%emt 0:00:00]} Bxe2 {[%emt 0:02:26]} 19. Qxe2 {[%emt 0:00:00]} Nhf4 {[%emt 0:09:42]} 20. Qf3 {[%emt 0:00:00]} cxd5 {[%emt 0:03:36]} 21. exd5 {[%emt 0:00:00]} Rc8 {[%emt 0:00:43]} 22. Bb3 {[%emt 0:00:00]} Nd4 {[%emt 0:11:36]} 23. Qxf4 {[%emt 0:00:00]} Qxf4 {[%emt 0:00:12]} 24. Rxf4 {[%emt 0:00:00]} Rxc3 {[%emt 0:00:26]} 25. Rxd4 {[%emt 0:00:00]} 1-0

[Event "34rd NATO Championship 2024"]
[Site "Rhodes"]
[Date "2024.10.22"]
[Round "2.33"]
[White "Brusokas, Eduardas"]
[Black "Ulusoy, Mustafa"]
[Result "1/2-1/2"]
[ECO "B12"]
[WhiteElo "1932"]
[BlackElo "1785"]
[Annotator "RC"]
[PlyCount "34"]
[EventDate "2024.09.18"]
[EventType "swiss"]
[EventCountry "GRE"]
[SourceTitle "playchess.com"]
[Source "ChessBase"]
[SourceQuality "1"]
[TimeControl "5400+30"]

1. e4 {[%emt 0:00:30]} c6 {[%emt 0:00:19]} 2. d4 {[%emt 0:00:06]} d5 {[%emt 0:00:04]} 3. e5 {[%emt 0:00:04]} Bf5 {[%emt 0:00:14]} 4. Nf3 {[%emt 0:00:13]} e6 {[%emt 0:00:14]} 5. Be2 {[%emt 0:00:18]} h6 {[%emt 0:00:36]} 6. c3 {[%emt 0:01:00]} Nd7 {[%emt 0:00:26]} 7. a4 {[%emt 0:02:21]} a5 {[%emt 0:04:06]} 8. O-O {[%emt 0:00:37]} Ne7 {[%emt 0:01:01]} 9. Nbd2 {[%emt 0:00:19]} c5 {[%emt 0:00:43]} 10. Re1 {[%emt 0:17:00]} Nc6 {[%emt 0:01:49]} 11. Bb5 {[%emt 0:05:14]} Be7 {[%emt 0:02:46]} 12. Nf1 {[%emt 0:01:23]} O-O {[%emt 0:00:19]} 13. Ne3 {[%emt 0:04:06]} Bh7 {[%emt 0:02:34]} 14. Bd3 {[%emt 0:00:35]} Bxd3 {[%emt 0:05:38]} 15. Qxd3 {[%emt 0:00:09]} cxd4 {[%emt 0:00:30]} 16. cxd4 {[%emt 0:00:33]} Bb4 {[%emt 0:03:12]} 17. Bd2 {[%emt 0:03:36]} Qb6 {[%emt 0:03:56]} 1/2-1/2